fUSD/lending_fUSD_20240425
["ID","MTS","AMOUNT","RATE_DAILY","PERIOD"]
[323523307,1714067441642,-500.0,0.00010958,2]
[323523308,1714067441652,-500.0,0.00010958,2]
[323523309,1714067441662,-939.59,0.00010958,2]
[323523310,1714067441671,-500.0,0.00010958,2]
[323523311,1714067441682,-500.0,0.00010958,2]
[323523312,1714067441693,-500.0,0.00010958,2]
[323523313,1714067441705,-500.0,0.00010958,2]
[323523314,1714067441718,-500.0,0.00010958,2]
[323523315,1714067441729,-500.0,0.00010958,2]
[323523316,1714067441739,-500.0,0.00010958,2]
[323523317,1714067441748,-489.06,0.00010958,2]
[323523318,1714067441757,-742.33,0.00010958,2]
[323523319,1714067441767,-500.0,0.00010958,2]
[323523320,1714067441937,-500.0,0.00010958,2]
[323523321,1714067441974,-762.04,0.00010958,2]
[323523322,1714067441985,-629.09722311,0.00010958,2]
[323523323,1714067441995,-500.0,0.00010958,2]
[323523324,1714067442005,-363.81924561,0.00010958,2]
[323523325,1714067442015,-208.13727306,0.00010958,2]
[323523326,1714067442025,-23399.23,0.00010958,2]
[323523327,1714067442035,-500.0,0.00010958,2]
[323523328,1714067442045,-500.0,0.00010958,2]
[323523329,1714067442055,-500.0,0.00010958,2]
[323523330,1714067442066,-500.0,0.00010958,2]
[323523331,1714067442077,-858.56,0.00010958,2]
[323523332,1714067442091,-561.38,0.00010958,2]
[323523333,1714067442101,-583.87,0.00010958,2]
[323523334,1714067442112,-500.0,0.00010958,2]
[323523335,1714067442121,-500.0,0.00010958,2]
[323523336,1714067442130,-500.0,0.00010958,2]
[323523337,1714067442140,-500.0,0.00010958,2]
[323523338,1714067442149,-500.0,0.00010958,2]
[323523339,1714067442160,-500.0,0.00010958,2]
[323523340,1714067442169,-500.0,0.00010958,2]
[323523341,1714067442178,-500.0,0.00010958,2]
[323523342,1714067442187,-500.0,0.00010958,2]
[323523343,1714067442197,-829.37,0.00010958,2]
[323523344,1714067442206,-500.0,0.00010958,2]
[323523345,1714067442217,-500.0,0.00010958,2]
[323523346,1714067442227,-500.0,0.00010958,2]
[323523347,1714067442237,-500.0,0.00010958,2]
[323523348,1714067442246,-694.19,0.00010958,2]
[323523351,1714067442255,-680.95,0.00010958,2]
[323523353,1714067442265,-500.0,0.00010958,2]
[323523354,1714067442274,-641.89746759,0.00010958,2]
[323523355,1714067442284,-500.0,0.00010958,2]
[323523356,1714067442294,-713.51,0.00010958,2]
[323523357,1714067442303,-154.07,0.00010958,2]
[323523358,1714067442312,-744.74,0.00010958,2]
[323523359,1714067442324,-500.0,0.00010958,2]
[323523360,1714067442334,-500.0,0.00010958,2]
[323523361,1714067442344,-500.0,0.00010958,2]
[323523362,1714067442354,-500.0,0.00010958,2]
[323523363,1714067442364,-500.0,0.00010958,2]
[323523364,1714067442375,-500.0,0.00010958,2]
[323523365,1714067442385,-500.0,0.00010958,2]
[323523366,1714067442394,-500.0,0.00010958,2]
[323523367,1714067442405,-500.0,0.00010958,2]
[323523368,1714067442417,-500.0,0.00010958,2]
[323523369,1714067442427,-500.0,0.00010958,2]
[323523370,1714067442436,-809.46,0.00010958,2]
[323523371,1714067442446,-530.54,0.00010958,2]
[323523372,1714067442457,-500.0,0.00010958,2]
[323523373,1714067442468,-795.87,0.00010958,2]
[323523375,1714067442478,-2793.76,0.00010958,2]
[323523377,1714067442487,-500.0,0.00010958,2]
[323523378,1714067442496,-2866.92,0.00010958,2]
[323523380,1714067442506,-500.0,0.00010958,2]
[323523381,1714067442516,-500.0,0.00010958,2]
[323523382,1714067442526,-1024.67,0.00010958,2]
[323523383,1714067442536,-1006.07,0.00010958,2]
[323523384,1714067442546,-1441.65,0.00010958,2]
[323523385,1714067442556,-736.56,0.00010958,2]
[323523386,1714067442565,-868.57,0.00010958,2]
[323523387,1714067442574,-500.0,0.00010958,2]
[323523388,1714067442584,-781.36,0.00010958,2]
[323523389,1714067442593,-500.0,0.00010958,2]
[323523390,1714067442603,-579.03,0.00010958,2]
[323523391,1714067442613,-500.0,0.00010958,2]
[323523392,1714067442622,-500.0,0.00010958,2]
[323523393,1714067442632,-500.0,0.00010958,2]
[323523394,1714067442642,-500.0,0.00010958,2]
[323523395,1714067442651,-500.0,0.00010958,2]
[323523396,1714067442660,-3410.08,0.00010958,2]
[323523397,1714067442669,-500.0,0.00010958,2]
[323523398,1714067442678,-500.0,0.00010958,2]
[323523399,1714067442687,-500.0,0.00010958,2]
[323523400,1714067442696,-500.0,0.00010958,2]
[323523401,1714067442706,-500.0,0.00010958,2]
[323523402,1714067442716,-500.0,0.00010958,2]
[323523403,1714067442726,-500.0,0.00010958,2]
[323523404,1714067442737,-600.5,0.00010958,2]
[323523405,1714067442747,-500.0,0.00010958,2]
[323523406,1714067442757,-966.23,0.00010958,2]
[323523407,1714067442766,-895.36,0.00010958,2]
[323523408,1714067442775,-738.13,0.00010958,2]
[323523409,1714067442784,-500.0,0.00010958,2]
[323523410,1714067442794,-1187.29,0.00010958,2]
[323523411,1714067442802,-500.0,0.00010958,2]
[323523412,1714067442812,-500.0,0.00010958,2]
[323523413,1714067442821,-500.0,0.00010958,2]
[323523414,1714067442830,-707.57,0.00010958,2]
[323523415,1714067442839,-2917.02,0.00010958,2]
[323523416,1714067442850,-500.0,0.00010958,2]
[323523417,1714067442859,-500.0,0.00010958,2]
[323523418,1714067442868,-624.09,0.00010958,2]
[323523419,1714067442878,-516.84,0.00010958,2]
[323523420,1714067442887,-500.0,0.00010958,2]
[323523421,1714067442896,-500.0,0.00010958,2]
[323523422,1714067442905,-5963.92,0.00010958,2]
[323523423,1714067442915,-500.0,0.00010958,2]
[323523424,1714067442924,-909.0,0.00010958,2]
[323523425,1714067442933,-500.0,0.00010958,2]
[323523426,1714067442942,-1111.7,0.00010958,2]
[323523427,1714067442951,-635.11,0.00010958,2]
[323523429,1714067442961,-500.0,0.00010958,2]
[323523430,1714067442976,-500.0,0.00010958,2]
[323523431,1714067442985,-798.31,0.00010958,2]
[323523432,1714067442995,-500.0,0.00010958,2]
[323523433,1714067443005,-500.0,0.00010958,2]
[323523434,1714067443014,-677.93,0.00010958,2]
[323523435,1714067443024,-726.34,0.00010958,2]
[323523436,1714067443033,-552.87,0.00010958,2]
[323523437,1714067443043,-924.15,0.00010958,2]
[323523438,1714067443053,-761.59,0.00010958,2]
[323523440,1714067443063,-500.0,0.00010958,2]
[323523442,1714067443072,-500.0,0.00010958,2]
[323523444,1714067443083,-500.0,0.00010958,2]
[323523447,1714067443095,-500.0,0.00010958,2]
[323523448,1714067443106,-1321.58,0.00010958,2]
[323523450,1714067443116,-500.0,0.00010958,2]
[323523452,1714067443126,-3943.14,0.00010958,2]
[323523454,1714067443136,-500.0,0.00010958,2]
[323523456,1714067443145,-500.0,0.00010958,2]
[323523458,1714067443155,-2153.13,0.00010958,2]
[323523460,1714067443164,-500.0,0.00010958,2]
[323523462,1714067443173,-764.31,0.00010958,2]
[323523464,1714067443182,-3035.98,0.00010958,2]
[323523465,1714067443191,-500.0,0.00010958,2]
[323523466,1714067443201,-500.0,0.00010958,2]
[323523467,1714067443210,-1320.34,0.00010958,2]
[323523468,1714067443221,-500.0,0.00010958,2]
[323523469,1714067443230,-500.0,0.00010958,2]
[323523470,1714067443240,-500.0,0.00010958,2]
[323523471,1714067443249,-500.0,0.00010958,2]
[323523472,1714067443259,-500.0,0.00010958,2]
[323523473,1714067443268,-500.0,0.00010958,2]
[323523474,1714067443278,-500.0,0.00010958,2]
[323523475,1714067443288,-646.68,0.00010958,2]
[323523476,1714067443297,-500.0,0.00010958,2]
[323523477,1714067443307,-500.0,0.00010958,2]
[323523478,1714067443317,-1758.69,0.00010958,2]
[323523479,1714067443326,-500.0,0.00010958,2]
[323523480,1714067443335,-2401.15,0.00010958,2]
[323523481,1714067443345,-510.25,0.00010958,2]
[323523482,1714067443354,-500.0,0.00010958,2]
[323523483,1714067443363,-500.0,0.00010958,2]
[323523484,1714067443376,-500.0,0.00010958,2]
[323523485,1714067443386,-1304.22,0.00010958,2]
[323523486,1714067443395,-311.27105515,0.00010958,2]
[323523487,1714067443404,-500.0,0.00010958,2]
[323523488,1714067443414,-500.0,0.00010958,2]
[323523489,1714067443423,-500.0,0.00010958,2]
[323523490,1714067443433,-1167.6,0.00010958,2]
[323523491,1714067443442,-500.0,0.00010958,2]
[323523492,1714067443453,-500.0,0.00010958,2]
[323523493,1714067443462,-500.0,0.00010958,2]
[323523494,1714067443471,-177.17,0.00010958,2]
[323523495,1714067443480,-2259.06,0.00010958,2]
[323523496,1714067443489,-500.0,0.00010958,2]
[323523497,1714067443498,-3469.79,0.00010958,2]
[323523498,1714067443508,-530.76,0.00010958,2]
[323523499,1714067443517,-3156.68,0.00010958,2]
[323523500,1714067443526,-500.0,0.00010958,2]
[323523501,1714067443536,-732.27,0.00010958,2]
[323523502,1714067443546,-500.0,0.00010958,2]
[323523503,1714067443555,-500.0,0.00010958,2]
[323523504,1714067443564,-500.0,0.00010958,2]
[323523505,1714067443573,-500.0,0.00010958,2]
[323523506,1714067443582,-500.0,0.00010958,2]
[323523507,1714067443591,-4753.27,0.00010958,2]
[323523508,1714067443600,-1051.15,0.00010958,2]
[323523509,1714067443609,-500.0,0.00010958,2]
[323523510,1714067443618,-518.2,0.00010958,2]
[323523511,1714067443627,-977.9,0.00010958,2]
[323523512,1714067443637,-535.34,0.00010958,2]
[323523513,1714067443647,-500.0,0.00010958,2]
[323523514,1714067443657,-837.85,0.00010958,2]
[323523515,1714067443666,-1890.94,0.00010958,2]
[323523516,1714067443675,-500.0,0.00010958,2]
[323523517,1714067443684,-500.0,0.00010958,2]
[323523518,1714067443693,-500.0,0.00010958,2]
[323523519,1714067443704,-500.0,0.00010958,2]
[323523520,1714067443713,-500.0,0.00010958,2]
[323523521,1714067443723,-500.0,0.00010958,2]
[323523522,1714067443733,-1177.01,0.00010958,2]
[323523523,1714067443745,-500.0,0.00010958,2]
[323523524,1714067443754,-500.0,0.00010958,2]
[323523525,1714067443764,-500.0,0.00010958,2]
[323523526,1714067443775,-500.0,0.00010958,2]
[323523527,1714067443784,-500.0,0.00010958,2]
[323523528,1714067443793,-1008.8,0.00010958,2]
[323523529,1714067443802,-500.0,0.00010958,2]
[323523530,1714067443811,-5264.15,0.00010958,2]
[323523531,1714067443821,-20987.97,0.00010958,2]
[323523532,1714067443831,-500.0,0.00010958,2]
[323523533,1714067443842,-500.0,0.00010958,2]
[323523534,1714067443851,-846.44,0.00010958,2]
[323523535,1714067443860,-500.0,0.00010958,2]
[323523536,1714067443870,-221.01,0.00010983,2]
[323523537,1714067443879,-749.63590295,0.00011,2]
[323523538,1714067443889,-7500.0,0.00011131,2]
[323523539,1714067443898,-406.02333626,0.00011132,2]
[323523540,1714067443907,-300.0,0.00011178,2]
[323523541,1714067443918,-161.00693236,0.00011222,2]
[323523542,1714067443927,-213.94764815,0.0001123,2]
[323523543,1714067443936,-740.3045243,0.0001123,2]
[323523544,1714067443947,-533.03,0.00011231,2]
[323523545,1714067443956,-500.0,0.00011231,2]
[323523546,1714067443968,-681.91,0.00011231,2]
[323523547,1714067443977,-828.38,0.00011231,2]
[323523548,1714067443986,-500.0,0.00011231,2]
[323523549,1714067443995,-1369.56,0.00011231,2]
[323523550,1714067444006,-2317.41,0.00011231,2]
[323523551,1714067444017,-546.82,0.00011231,2]
[323523552,1714067444026,-537.62,0.00011231,2]
[323523553,1714067444035,-1318.05,0.00011231,2]
[323523554,1714067444044,-4028.59,0.00011231,2]
[323523555,1714067444054,-1383.0,0.00011231,2]
[323523556,1714067444063,-514.21,0.00011231,2]
[323523557,1714067444072,-1060.36,0.00011231,2]
[323523558,1714067444082,-747.36,0.00011231,2]
[323523559,1714067444092,-500.0,0.00011231,2]
[323523560,1714067444102,-1349.46,0.00011231,2]
[323523561,1714067444112,-500.0,0.00011231,2]
[323523562,1714067444123,-655.94,0.00011231,2]
[323523563,1714067444133,-3966.3,0.00011231,2]
[323523564,1714067444143,-2017.24,0.00011231,2]
[323523565,1714067444153,-7992.33,0.00011231,2]
[323523566,1714067444162,-604.2,0.00011232,2]
[323523567,1714067444171,-500.0,0.00011232,2]
[323523568,1714067444181,-500.0,0.00011232,2]
[323523569,1714067444190,-500.0,0.00011232,2]
[323523570,1714067444199,-500.0,0.00011232,2]
[323523571,1714067444209,-500.0,0.00011232,2]
[323523572,1714067444220,-500.0,0.00011232,2]
[323523573,1714067444230,-508.84383238,0.00011232,2]
[323523574,1714067444239,-500.0,0.00011232,2]
[323523575,1714067444248,-500.0,0.00011232,2]
[323523576,1714067444258,-597.79,0.00011232,2]
[323523577,1714067444267,-500.0,0.00011232,2]
[323523578,1714067444276,-500.0,0.00011232,2]
[323523579,1714067444286,-679.53,0.00011232,2]
[323523580,1714067444295,-500.0,0.00011232,2]
[323523581,1714067444304,-500.0,0.00011232,2]
[323523582,1714067444313,-500.0,0.00011232,2]
[323523583,1714067444322,-949.76,0.00011232,2]
[323523584,1714067444331,-500.0,0.00011232,2]
[323523585,1714067444340,-500.0,0.00011232,2]
[323523586,1714067444350,-500.0,0.00011232,2]
[323523587,1714067444359,-500.0,0.00011232,2]
[323523588,1714067444369,-500.0,0.00011232,2]
[323523589,1714067444381,-500.0,0.00011232,2]
[323523590,1714067444390,-500.0,0.00011232,2]
[323523591,1714067444398,-500.0,0.00011232,2]
[323523592,1714067444407,-500.0,0.00011232,2]
[323523593,1714067444418,-500.0,0.00011232,2]
[323523594,1714067444427,-500.0,0.00011232,2]
[323523595,1714067444436,-500.0,0.00011232,2]
[323523596,1714067444446,-958.4,0.00011232,2]
[323523597,1714067444455,-500.0,0.00011232,2]
[323523598,1714067444466,-500.0,0.00011232,2]
[323523599,1714067444476,-500.0,0.00011232,2]
[323523600,1714067444486,-500.0,0.00011232,2]
[323523601,1714067444495,-500.0,0.00011232,2]
[323523602,1714067444505,-500.0,0.00011232,2]
[323523603,1714067444514,-754.04,0.00011232,2]
[323523604,1714067444523,-500.0,0.00011232,2]
[323523605,1714067444532,-500.0,0.00011232,2]
[323523606,1714067444542,-500.0,0.00011232,2]
[323523607,1714067444551,-677.29,0.00011232,2]
[323523608,1714067444560,-500.0,0.00011232,2]
[323523609,1714067444569,-913.14,0.00011232,2]
[323523610,1714067444579,-632.77,0.00011232,2]
[323523611,1714067444588,-500.0,0.00011232,2]
[323523612,1714067444598,-500.0,0.00011232,2]
[323523613,1714067444607,-500.0,0.00011232,2]
[323523614,1714067444618,-835.0,0.00011232,2]
[323523615,1714067444627,-576.38,0.00011232,2]
[323523616,1714067444636,-500.0,0.00011232,2]
[323523617,1714067444646,-774.42,0.00011232,2]
[323523618,1714067444655,-537.21,0.00011232,2]
[323523619,1714067444664,-796.17,0.00011232,2]
[323523620,1714067444673,-500.0,0.00011232,2]
[323523621,1714067444683,-800.87,0.00011232,2]
[323523622,1714067444691,-500.0,0.00011232,2]
[323523623,1714067444701,-500.0,0.00011232,2]
[323523624,1714067444710,-500.0,0.00011232,2]
[323523625,1714067444722,-500.0,0.00011232,2]
[323523626,1714067444732,-193.37087638,0.00011232,2]
[323523627,1714067444741,-500.0,0.00011232,2]
[323523628,1714067444752,-954.54,0.00011232,2]
[323523629,1714067444761,-500.0,0.00011232,2]
[323523630,1714067444772,-500.0,0.00011232,2]
[323523631,1714067444781,-500.0,0.00011232,2]
[323523632,1714067444790,-500.0,0.00011232,2]
[323523633,1714067444801,-500.0,0.00011232,2]
[323523634,1714067444811,-500.0,0.00011232,2]
[323523635,1714067444821,-500.0,0.00011232,2]
[323523636,1714067444830,-845.56,0.00011232,2]
[323523637,1714067444840,-500.0,0.00011232,2]
[323523638,1714067444850,-500.0,0.00011232,2]
[323523639,1714067444861,-500.0,0.00011232,2]
[323523640,1714067444871,-500.0,0.00011232,2]
[323523641,1714067444882,-500.0,0.00011232,2]
[323523642,1714067444892,-785.13,0.00011232,2]
[323523643,1714067444901,-500.0,0.00011232,2]
[323523644,1714067444911,-500.0,0.00011232,2]
[323523645,1714067444920,-500.0,0.00011232,2]
[323523646,1714067444930,-500.0,0.00011232,2]
[323523647,1714067444939,-500.0,0.00011232,2]
[323523648,1714067444948,-500.0,0.00011232,2]
[323523649,1714067444957,-763.14,0.00011232,2]
[323523650,1714067444968,-500.0,0.00011232,2]
[323523651,1714067444977,-500.0,0.00011232,2]
[323523652,1714067444986,-836.92,0.00011232,2]
[323523653,1714067444996,-500.0,0.00011232,2]
[323523654,1714067445005,-500.0,0.00011232,2]
[323523655,1714067445015,-500.0,0.00011232,2]
[323523656,1714067445024,-500.0,0.00011232,2]
[323523657,1714067445033,-500.0,0.00011232,2]
[323523658,1714067445042,-1006.08,0.00011232,2]
[323523659,1714067445051,-500.0,0.00011232,2]
[323523660,1714067445060,-500.0,0.00011232,2]
[323523661,1714067445069,-500.0,0.00011232,2]
[323523662,1714067445078,-567.83,0.00011232,2]
[323523663,1714067445088,-500.0,0.00011232,2]
[323523664,1714067445097,-500.0,0.00011232,2]
[323523665,1714067445107,-537.47,0.00011232,2]
[323523666,1714067445116,-500.0,0.00011232,2]
[323523667,1714067445125,-894.31,0.00011232,2]
[323523668,1714067445134,-500.0,0.00011232,2]
[323523669,1714067445143,-500.0,0.00011232,2]
[323523670,1714067445152,-648.55,0.00011232,2]
[323523671,1714067445162,-500.0,0.00011232,2]
[323523672,1714067445171,-500.0,0.00011232,2]
[323523673,1714067445180,-500.0,0.00011232,2]
[323523674,1714067445190,-500.0,0.00011232,2]
[323523675,1714067445199,-584.11,0.00011232,2]
[323523676,1714067445208,-500.0,0.00011232,2]
[323523677,1714067445219,-500.0,0.00011232,2]
[323523678,1714067445229,-500.0,0.00011232,2]
[323523679,1714067445238,-150.0,0.00011232,2]
[323523680,1714067445249,-500.0,0.00011232,2]
[323523681,1714067445258,-500.0,0.00011232,2]
[323523682,1714067445268,-500.0,0.00011232,2]
[323523683,1714067445277,-540.93,0.00011232,2]
[323523684,1714067445286,-500.0,0.00011232,2]
[323523685,1714067445295,-500.0,0.00011232,2]
[323523686,1714067445305,-500.0,0.00011232,2]
[323523687,1714067445315,-500.0,0.00011232,2]
[323523688,1714067445325,-500.0,0.00011232,2]
[323523689,1714067445339,-500.0,0.00011232,2]
[323523690,1714067445349,-500.0,0.00011232,2]
[323523691,1714067445360,-500.0,0.00011232,2]
[323523692,1714067445369,-500.0,0.00011232,2]
[323523694,1714067445380,-588.05,0.00011232,2]
[323523696,1714067445389,-500.0,0.00011232,2]
[323523697,1714067445399,-500.0,0.00011232,2]
[323523700,1714067445408,-500.0,0.00011232,2]
[323523702,1714067445417,-500.0,0.00011232,2]
[323523705,1714067445426,-502.67155838,0.00011232,2]
[323523708,1714067445436,-500.0,0.00011232,2]
[323523710,1714067445445,-500.0,0.00011232,2]
[323523712,1714067445457,-500.0,0.00011232,2]
[323523714,1714067445469,-500.0,0.00011232,2]
[323523716,1714067445478,-542.44,0.00011232,2]
[323523717,1714067445487,-796.54,0.00011232,2]
[323523718,1714067445496,-508.22650686,0.00011232,2]
[323523719,1714067445506,-636.92,0.00011232,2]
[323523720,1714067445515,-500.0,0.00011232,2]
[323523721,1714067445525,-500.0,0.00011232,2]
[323523722,1714067445535,-259.37872882,0.00011232,2]
[323523723,1714067445545,-914.08,0.00011232,2]
[323523724,1714067445554,-500.0,0.00011232,2]
[323523725,1714067445583,-563.4,0.00011232,2]
[323523726,1714067445601,-500.0,0.00011232,2]
[323523727,1714067445792,-500.0,0.00011232,2]
[323523728,1714067445802,-668.11,0.00011232,2]
[323523729,1714067445811,-715.92,0.00011232,2]
[323523730,1714067445820,-500.0,0.00011232,2]
[323523731,1714067445829,-500.0,0.00011232,2]
[323523732,1714067445838,-1121.85,0.00011232,2]
[323523733,1714067445847,-2051.83,0.00011232,2]
[323523734,1714067445856,-928.51,0.00011232,2]
[323523735,1714067445865,-854.92,0.00011232,2]
[323523736,1714067445874,-386.49790602,0.00011232,2]
[323523737,1714067445883,-1005.82,0.00011232,2]
[323523738,1714067445893,-500.0,0.00011232,2]
[323523739,1714067445902,-893.22,0.00011232,2]
[323523740,1714067445911,-500.0,0.00011232,2]
[323523741,1714067445920,-500.0,0.00011232,2]
[323523742,1714067445929,-503.3,0.00011232,2]
[323523743,1714067445938,-500.0,0.00011232,2]
[323523744,1714067445947,-500.0,0.00011232,2]
[323523745,1714067445956,-500.0,0.00011232,2]
[323523746,1714067445967,-1018.77,0.00011232,2]
[323523747,1714067445977,-500.0,0.00011232,2]
[323523748,1714067445987,-1601.08,0.00011232,2]
[323523749,1714067445997,-500.0,0.00011232,2]
[323523750,1714067446007,-500.0,0.00011232,2]
[323523751,1714067446022,-500.0,0.00011232,2]
[323523752,1714067446031,-500.0,0.00011232,2]
[323523753,1714067446041,-515.94565761,0.00011232,2]
[323523754,1714067446050,-500.0,0.00011232,2]
[323523755,1714067446059,-516.49813209,0.00011232,2]
[323523756,1714067446069,-1114.47,0.00011232,2]
[323523757,1714067446079,-500.0,0.00011232,2]
[323523758,1714067446088,-1161.09,0.00011232,2]
[323523759,1714067446097,-500.0,0.00011232,2]
[323523760,1714067446107,-500.0,0.00011232,2]
[323523761,1714067446116,-500.0,0.00011232,2]
[323523762,1714067446125,-500.0,0.00011232,2]
[323523763,1714067446135,-8685.8,0.00011232,2]
[323523764,1714067446144,-500.0,0.00011232,2]
[323523765,1714067446153,-500.0,0.00011232,2]
[323523766,1714067446163,-939.59,0.00011232,2]
[323523767,1714067446172,-500.0,0.00011232,2]
[323523768,1714067446181,-500.0,0.00011232,2]
[323523769,1714067446191,-500.0,0.00011232,2]
[323523770,1714067446201,-500.0,0.00011232,2]
[323523771,1714067446210,-500.0,0.00011232,2]
[323523772,1714067446221,-742.33,0.00011232,2]
[323523773,1714067446231,-500.0,0.00011232,2]
[323523774,1714067446240,-762.04,0.00011232,2]
[323523775,1714067446249,-500.0,0.00011232,2]
[323523776,1714067446258,-23399.23,0.00011232,2]
[323523777,1714067446267,-500.0,0.00011232,2]
[323523778,1714067446276,-500.0,0.00011232,2]
[323523779,1714067446285,-455.15339235,0.00011232,2]
[323523780,1714067446295,-500.0,0.00011232,2]
[323523781,1714067446304,-858.56,0.00011232,2]
[323523782,1714067446313,-583.87,0.00011232,2]
[323523783,1714067446322,-500.0,0.00011232,2]
[323523784,1714067446331,-500.0,0.00011232,2]
[323523785,1714067446340,-500.0,0.00011232,2]
[323523786,1714067446349,-500.0,0.00011232,2]
[323523787,1714067446359,-500.0,0.00011232,2]
[323523788,1714067446369,-829.37,0.00011232,2]
[323523789,1714067446382,-500.0,0.00011232,2]
[323523790,1714067446391,-500.0,0.00011232,2]
[323523791,1714067446400,-500.0,0.00011232,2]
[323523792,1714067446411,-500.0,0.00011232,2]
[323523793,1714067446421,-500.0,0.00011232,2]
[323523794,1714067446431,-694.19,0.00011232,2]
[323523795,1714067446439,-680.95,0.00011232,2]
[323523796,1714067446449,-500.0,0.00011232,2]
[323523797,1714067446458,-713.51,0.00011232,2]
[323523798,1714067446469,-744.74,0.00011232,2]
[323523799,1714067446479,-500.0,0.00011232,2]
[323523800,1714067446488,-288.35066698,0.00011232,2]
[323523801,1714067446498,-500.0,0.00011232,2]
[323523802,1714067446507,-500.0,0.00011232,2]
[323523803,1714067446516,-500.0,0.00011232,2]
[323523804,1714067446525,-500.0,0.00011232,2]
[323523805,1714067446533,-221.70240603,0.00011232,2]
[323523806,1714067446542,-500.0,0.00011232,2]
[323523807,1714067446551,-809.46,0.00011232,2]
[323523808,1714067446560,-530.54,0.00011232,2]
[323523809,1714067446570,-497.3370405,0.00011232,2]
[323523810,1714067446579,-795.87,0.00011232,2]
[323523811,1714067446588,-2793.76,0.00011232,2]
[323523812,1714067446597,-2866.92,0.00011232,2]
[323523813,1714067446606,-500.0,0.00011232,2]
[323523814,1714067446615,-1024.67,0.00011232,2]
[323523815,1714067446625,-1006.07,0.00011232,2]
[323523816,1714067446634,-1441.65,0.00011232,2]
[323523817,1714067446643,-736.56,0.00011232,2]
[323523818,1714067446653,-868.57,0.00011232,2]
[323523819,1714067446662,-500.0,0.00011232,2]
[323523820,1714067446671,-781.36,0.00011232,2]
[323523821,1714067446681,-579.03,0.00011232,2]
[323523822,1714067446690,-500.0,0.00011232,2]
[323523823,1714067446700,-500.0,0.00011232,2]
[323523824,1714067446709,-500.0,0.00011232,2]
[323523825,1714067446720,-3410.08,0.00011232,2]
[323523826,1714067446730,-514.03,0.00011232,2]
[323523827,1714067446740,-500.0,0.00011232,2]
[323523828,1714067446750,-500.0,0.00011232,2]
[323523829,1714067446761,-500.0,0.00011232,2]
[323523830,1714067446771,-500.0,0.00011232,2]
[323523831,1714067446782,-500.0,0.00011232,2]
[323523832,1714067446793,-600.5,0.00011232,2]
[323523833,1714067446804,-966.23,0.00011232,2]
[323523834,1714067446815,-738.13,0.00011232,2]
[323523835,1714067446827,-895.36,0.00011232,2]
[323523836,1714067446838,-500.0,0.00011232,2]
[323523837,1714067446847,-1187.29,0.00011232,2]
[323523838,1714067446858,-500.0,0.00011232,2]
[323523839,1714067446868,-707.57,0.00011232,2]